bitfinex/quotes_ETHUSD_20260307
["timestamp","ask_amount","ask_price","bid_price","bid_amount"]
[1772880000442,1.6863167,1985.7,1985.5,0.0011]
[1772880000643,1.6863167,1985.7,1985.6,0.0011]
[1772880002875,0.45156841,1985.6,1985.4,0.0011]
[1772880003278,1.71069709,1985.5,1985.4,0.0011]
[1772880013489,0.45156841,1985.4,1985.2,0.0011]
[1772880015495,1.7107812,1985.4,1985.2,0.0011]
[1772880017481,0.45156841,1985.4,1985.2,0.0011]
[1772880017900,0.45156841,1985.5,1985.2,0.48329325]
[1772880018106,0.45256841,1985.6,1985.2,0.48329325]
[1772880024605,1.25912868,1985.5,1985.3,0.48329325]
[1772880024777,1.26012868,1985.5,1985.3,0.48329325]
[1772880031682,1.71169709,1985.5,1985.3,0.0011]
[1772880036220,1.71169709,1985.5,1985.4,0.0011]
[1772880047785,0.45626967,1985.4,1985.3,0.0011]
[1772880048377,0.45726967,1985.5,1985.3,0.0011]
[1772880048886,0.45726967,1985.5,1985.4,0.0011]
[1772880049894,0.001,1985.5,1985.4,0.0011]
[1772880051084,0.001,1985.5,1985.4,0.48861045]
[1772880063110,1.2590147,1985.7,1985.5,0.4780522]
[1772880063272,1.25998905,1985.8,1985.5,0.4780522]
[1772880064020,0.001,1985.8,1985.5,0.4780522]
[1772880065417,1.71286091,1985.8,1985.5,0.4780522]
[1772880065606,1.71286091,1985.8,1985.4,0.4791522]
[1772880065607,0.4529203,1985.7,1985.4,0.4791522]
[1772880068222,1.71193279,1985.7,1985.4,0.4791522]
[1772880070710,1.71193279,1985.7,1985.4,0.0011]
[1772880070711,0.4529203,1985.6,1985.4,0.0011]
[1772880071214,0.4529203,1985.7,1985.4,0.4791522]
[1772880071512,1.71192389,1985.7,1985.4,0.4791522]
[1772880072319,1.25900787,1985.7,1985.4,0.4791522]
[1772880072618,1.71192817,1985.7,1985.5,0.0011]
[1772880073003,0.001,1985.6,1985.5,0.0011]
[1772880075700,0.001,1985.6,1985.5,0.4791522]
[1772880075899,0.001,1985.8,1985.6,0.4780522]
[1772880077818,0.001,1985.8,1985.6,1.259025]
[1772880078025,0.001,1985.8,1985.7,0.4780522]
[1772880079411,0.001,1985.8,1985.7,1.73705406]
[1772880081223,0.4529203,1986.2,1985.9,0.4780522]
[1772880081522,0.4529203,1986.1,1985.8,0.4780522]
[1772880081714,0.4529203,1986.1,1985.6,1.73711327]
[1772880081918,0.4529203,1986.1,1985.6,1.25906107]
[1772880082097,0.4529203,1986.1,1985.7,0.4780522]
[1772880083500,0.4529203,1986.1,1985.6,0.4780522]
[1772880084108,0.4529203,1985.9,1985.6,0.4780522]
[1772880084614,0.4529203,1985.9,1985.7,0.0011]
[1772880094443,1.71181889,1985.9,1985.7,0.0011]
[1772880096435,0.001,1985.8,1985.7,0.0011]
[1772880107117,0.001,1985.8,1985.7,0.47403893]
[1772880119958,0.49229783,1985.8,1985.5,1.26022373]
[1772880120155,0.49229783,1985.8,1985.5,1.73681624]
[1772880120458,0.001,1985.8,1985.7,0.0011]
[1772880124476,0.46774495,1985.8,1985.7,0.0011]
[1772880133867,1.72668341,1985.8,1985.7,0.0011]
[1772880134067,1.25993846,1985.8,1985.5,0.0011]
[1772880134262,0.46674495,1985.7,1985.5,0.0011]
[1772880135949,1.72574836,1985.7,1985.5,0.0011]
[1772880136669,1.72673381,1985.8,1985.5,0.0011]
[1772880137259,0.46674495,1985.7,1985.5,0.0011]
[1772880143968,0.46674495,1985.7,1985.6,0.0011]
[1772880144374,0.46774495,1985.7,1985.6,0.0011]
[1772880147175,1.72674681,1985.7,1985.6,0.0011]
[1772880159489,0.46774495,1985.7,1985.6,0.0011]
[1772880163385,1.72674681,1985.7,1985.6,0.0011]
[1772880165792,0.46774495,1985.7,1985.6,0.0011]
[1772880166495,0.001,1985.7,1985.6,0.0011]
[1772880168294,1.26000186,1985.7,1985.6,0.0011]
[1772880169485,1.71839608,1985.7,1985.6,0.0011]
[1772880169691,0.45839422,1985.6,1985.4,0.0011]
[1772880171773,1.71748008,1985.6,1985.4,0.0011]
[1772880178413,0.45839422,1985.5,1985.4,0.0011]
[1772880180113,1.73514593,1985.6,1985.4,0.0011]
[1772880185087,0.47606007,1985.6,1985.4,0.0011]
[1772880187517,1.73514054,1985.6,1985.4,0.0011]
[1772880190519,1.73514054,1985.6,1985.5,0.0011]
[1772880198327,1.26008047,1985.6,1985.5,0.0011]
[1772880208016,1.72543336,1985.6,1985.5,0.0011]
[1772880219189,1.26008047,1985.6,1985.5,0.0011]
[1772880225751,1.7134807,1985.6,1985.5,0.0011]
[1772880227423,0.45440023,1985.5,1985.2,0.0011]
[1772880227961,0.45440023,1985.5,1985.2,0.47726568]
[1772880229826,1.2591921,1985.4,1985.2,0.47726568]
[1772880239079,1.2591921,1985.4,1985.3,0.0011]
[1772880258658,1.2591921,1985.4,1985.3,0.45596169]
[1772880259688,5.03752812,1985.5,1985.3,0.45596169]
[1772880262183,1.26012868,1985.5,1985.2,0.0011]
[1772880262487,0.001,1985.4,1985.2,0.45596169]
[1772880265089,0.001,1985.4,1985.1,0.0011]
[1772880265272,0.501,1985.4,1985.0,0.5011]
[1772880266694,1.25925552,1985.3,1985.0,0.5011]
[1772880267769,1.75925552,1985.3,1985.0,0.5011]
[1772880273800,0.5,1985.2,1985.0,0.5011]
[1772880274099,0.5,1985.2,1985.1,0.0011]
[1772880278599,1.76031255,1985.3,1985.1,0.0011]
[1772880280298,1.76031255,1985.3,1984.9,1.25950585]
[1772880280299,0.5,1985.2,1984.9,1.25950585]
[1772880281103,1.75932186,1985.2,1984.9,1.25950585]
[1772880281512,1.26029992,1985.3,1984.9,1.25950585]
[1772880281690,0.001,1985.3,1985.0,1.25950585]
[1772880281876,1.26027443,1985.3,1984.9,1.25950585]
[1772880285289,0.501,1985.3,1984.9,1.25950585]
[1772880285487,0.001,1985.3,1984.9,1.25950585]
[1772880285899,0.001,1985.3,1985.0,0.0011]
[1772880286206,0.001,1985.2,1985.0,0.0011]
[1772880287107,0.001,1985.2,1985.1,1.25950585]
[1772880288509,0.001,1985.2,1985.1,1.16336947]
[1772880288510,0.501,1985.2,1985.1,1.16336947]
[1772880288803,0.501,1985.2,1985.0,0.0011]
[1772880289008,0.501,1985.2,1985.0,1.16446947]
[1772880289218,0.501,1985.2,1984.9,0.0011]
[1772880289706,1.25938239,1985.1,1984.9,0.0011]
[1772880289907,1.75938239,1985.1,1984.9,0.0011]
[1772880290908,0.5,1985.1,1984.9,0.0011]
[1772880291113,1.76036859,1985.2,1984.9,0.0011]
[1772880291280,0.5,1985.1,1984.9,0.0011]
[1772880291609,1.76036859,1985.2,1984.9,0.0011]
[1772880294009,0.5,1985.1,1984.9,0.0011]
[1772880296714,0.001,1985.2,1984.9,0.0011]
[1772880298214,0.001,1985.2,1985.0,0.0011]
[1772880298415,0.001,1985.1,1985.0,0.0011]
[1772880298787,0.001,1985.1,1984.7,0.0011]
[1772880298788,0.5,1985.0,1984.7,0.0011]
[1772880299123,0.5,1984.8,1984.4,0.0011]
[1772880300815,1.75963621,1984.7,1984.4,0.0011]
[1772880301301,0.5,1984.6,1984.4,0.0011]
[1772880302920,1.25963621,1984.7,1984.4,0.0011]
[1772880303818,1.75963621,1984.7,1984.4,0.0011]
[1772880306422,0.5,1984.6,1984.4,0.0011]
[1772880306721,1.25963621,1984.7,1984.1,0.0011]
[1772880306722,0.5,1984.4,1984.1,0.0011]
[1772880310025,1.75982929,1984.4,1984.1,0.0011]
[1772880310827,1.75982929,1984.4,1984.2,0.0011]
[1772880314021,0.5,1984.3,1984.2,0.0011]
[1772880314521,0.5,1984.3,1984.0,0.0011]
[1772880315104,1.75995363,1984.2,1984.0,0.0011]
[1772880317330,0.5,1984.3,1984.0,0.0011]
[1772880321538,1.75993993,1984.3,1984.0,0.0011]
[1772880321719,0.5,1984.2,1984.0,0.0011]
[1772880322128,0.5,1984.2,1984.1,0.0011]
[1772880322327,0.501,1984.2,1984.1,0.0011]
[1772880330038,0.001,1984.2,1984.1,0.0011]
[1772880360384,0.5,1984.5,1984.1,0.0011]
[1772880361568,0.5,1984.4,1984.1,0.0011]
[1772880362768,0.5,1984.4,1983.7,0.0022]
[1772880363960,0.49945,1984.2,1983.7,0.0022]
[1772880368866,0.49945,1984.1,1983.7,0.0022]
[1772880369296,0.49945,1984.1,1984.0,0.0011]
[1772880369847,0.49945,1984.1,1983.7,0.0022]
[1772880371668,0.49945,1984.1,1983.8,0.0022]
[1772880371869,1.76038742,1984.3,1983.9,0.0011]
[1772880372064,0.49945,1984.2,1983.9,0.0011]
[1772880373779,0.49945,1984.1,1983.8,0.0011]
[1772880374785,0.49945,1984.1,1983.8,0.0022]
[1772880380486,0.001,1984.3,1983.8,0.0022]
[1772880380487,1.76038453,1984.3,1983.9,0.0011]
[1772880380664,0.49945,1984.2,1983.9,0.0011]
[1772880381686,0.49945,1984.2,1983.9,0.0022]
[1772880388491,0.49945,1984.2,1983.9,0.0011]
[1772880393203,0.001,1984.1,1983.9,0.0011]
[1772880405014,0.001,1984.1,1983.9,0.0022]
[1772880405214,0.001,1984.1,1984.0,0.0011]
[1772880406211,0.001,1984.1,1983.9,0.0022]
[1772880407001,0.001,1984.1,1984.0,0.0011]
[1772880413136,0.001,1984.3,1984.0,0.47962019]
[1772880416228,0.001,1984.3,1984.0,1.73966881]
[1772880418555,0.001,1984.2,1984.0,1.73966881]
[1772880420338,0.001,1984.2,1984.1,0.48877926]
[1772880420538,0.001,1984.2,1984.1,1.74879639]
[1772880423338,0.001,1984.3,1984.2,0.45389235]
[1772880425225,0.001,1984.3,1984.2,1.71384598]
[1772880425841,0.001,1984.3,1984.2,1.25995363]
[1772880429953,0.001,1984.3,1984.2,1.26105363]
[1772880431323,0.001,1984.3,1984.2,1.71494598]
[1772880438637,0.46054423,1984.6,1984.3,0.45389235]
[1772880442549,0.46054423,1984.6,1984.3,1.71375237]
[1772880445159,0.46054423,1984.6,1984.3,1.71485237]
[1772880445459,0.001,1984.5,1984.3,1.71485237]
[1772880446231,0.46054423,1984.5,1984.3,1.26096002]
[1772880449759,0.46054423,1984.5,1984.3,0.0011]
[1772880457143,0.46054423,1984.5,1984.4,0.0011]
[1772880463463,0.46054423,1984.5,1984.2,0.0011]
[1772880464767,0.46054423,1984.5,1984.2,0.49739156]
[1772880465478,0.46054423,1984.5,1984.2,1.75730238]
[1772880469286,0.46054423,1984.5,1984.3,0.0011]
[1772880469460,0.001,1984.4,1984.3,0.0011]
[1772880489445,0.46363831,1984.4,1984.3,0.0011]
[1772880493098,0.46363831,1984.4,1984.3,0.0011]
[1772880500212,0.001,1984.5,1984.3,0.49831007]
[1772880500503,0.46263831,1984.8,1984.4,0.49721007]
[1772880500802,5.03779949,1985.0,1984.4,0.49721007]
[1772880500803,0.46263831,1985.0,1984.4,0.49721007]
[1772880501675,0.46263831,1984.9,1984.3,0.0011]
[1772880502006,0.46263831,1984.7,1984.3,0.0011]
[1772880502500,1.259688,1984.7,1984.3,0.0011]
[1772880502700,0.46263831,1984.6,1984.3,0.0011]
[1772880504574,0.46263831,1984.6,1984.4,0.0011]
[1772880507610,0.46263831,1984.7,1984.4,0.49831007]
[1772880517116,0.46263831,1984.7,1984.5,0.0011]
[1772880517483,0.001,1984.6,1984.5,0.0011]
[1772880519239,0.48049773,1984.5,1984.2,0.0011]
[1772880519380,0.48049773,1984.5,1984.2,0.48588882]
[1772880519590,0.001,1984.6,1984.2,0.48588882]
[1772880521616,0.48149773,1984.6,1984.3,1.25989013]
[1772880521817,0.48149773,1984.6,1984.3,1.74467895]
[1772880527620,0.001,1984.6,1984.4,0.48478882]
[1772880528721,0.001,1984.6,1984.5,1.25976316]
[1772880528932,0.001,1984.8,1984.5,1.74455198]
[1772880529094,0.001,1984.8,1984.6,0.48478882]
[1772880534456,0.001,1984.8,1984.4,1.26088922]
[1772880534629,0.001,1984.8,1984.5,0.48478882]
[1772880536130,0.48149773,1984.8,1984.5,0.48478882]
[1772880540624,0.001,1984.7,1984.5,0.48478882]
[1772880545146,0.001,1984.7,1984.5,1.74453589]
[1772880545343,0.001,1984.7,1984.6,0.48175689]
[1772880546551,0.45261012,1985.0,1984.7,0.48175689]
[1772880546846,0.001,1985.1,1984.7,0.48175689]
[1772880547048,0.001,1985.1,1984.8,0.48175689]
[1772880549642,0.001,1985.3,1985.1,0.48175689]
[1772880550428,0.001,1985.5,1984.9,0.48175689]
[1772880552552,0.001,1985.5,1985.1,0.48175689]
[1772880552737,0.001,1985.5,1985.3,0.48175689]
[1772880554427,0.001,1985.7,1985.5,0.48175689]
[1772880554759,0.45361012,1985.8,1985.5,0.48175689]
[1772880554953,0.45361012,1985.8,1985.5,1.74084269]
[1772880556137,0.001,1985.8,1985.6,0.48175689]
[1772880556648,0.001,1985.8,1985.6,1.74081907]
[1772880557465,0.001,1985.8,1985.6,0.48175689]
[1772880557944,0.001,1985.8,1985.5,1.74088008]
[1772880559359,0.45361012,1985.8,1985.0,5.03776434]
[1772880559567,0.45361012,1985.8,1985.2,0.48175689]
[1772880560146,0.001,1985.8,1985.2,0.48175689]
[1772880560969,0.45361012,1985.8,1985.2,0.48175689]
[1772880562081,0.45361012,1985.8,1985.4,0.48175689]
[1772880563643,0.001,1985.8,1985.4,0.48175689]
[1772880564243,0.001,1985.8,1985.6,0.48175689]
[1772880564501,0.45261012,1986.2,1985.8,0.48175689]
[1772880565455,1.71119948,1986.4,1985.8,0.48175689]
[1772880565741,0.45261012,1986.3,1985.8,0.48175689]
[1772880566239,0.45261012,1986.1,1985.8,0.48175689]
[1772880566439,0.45261012,1986.1,1985.7,2.61997639]
[1772880566440,0.45261012,1986.1,1985.7,1.361]
[1772880566639,0.45261012,1985.9,1985.6,3.09982134]
[1772880570270,0.45261012,1985.9,1985.6,1.84075689]
[1772880570474,0.45261012,1985.9,1985.6,3.09982086]
[1772880575582,0.002,1986.0,1985.7,0.47559033]
[1772880576381,0.4766352,1986.0,1985.7,0.47559033]
[1772880577783,0.4766352,1986.0,1985.7,1.73458295]
[1772880577985,0.4766352,1986.0,1985.7,1.73558295]
[1772880578480,0.002,1985.9,1985.7,1.73558295]
[1772880581677,0.4766352,1985.9,1985.7,1.25999262]
[1772880583876,0.002,1985.9,1985.7,1.73558295]
[1772880590318,0.4766352,1985.9,1985.5,1.365]
[1772880590611,0.4746352,1985.8,1985.5,0.001]
[1772880591119,0.4746352,1985.8,1985.7,0.001]
[1772880591620,0.4766352,1985.8,1985.7,0.001]
[1772880593087,1.73557366,1985.8,1985.7,0.001]
[1772880595725,0.4746352,1985.7,1985.5,0.001]
[1772880598496,1.73365499,1985.7,1985.5,0.001]
[1772880598697,1.26098921,1985.8,1985.5,0.001]
[1772880598992,1.7544308,1985.8,1985.5,0.49446417]
[1772880600500,0.49544159,1985.8,1985.5,0.49446417]
[1772880601526,1.75439172,1985.8,1985.5,0.49446417]
[1772880601933,0.49544159,1985.8,1985.5,0.49446417]
[1772880602635,0.49544159,1985.8,1985.5,1.75358634]
[1772880603402,0.49544159,1985.8,1985.6,0.001]
[1772880605037,0.002,1985.8,1985.7,0.46095764]
[1772880605330,0.002,1985.8,1985.6,0.001]
[1772880605808,0.002,1985.8,1985.6,0.46195764]
[1772880607237,0.002,1985.9,1985.7,0.46095764]
[1772880607745,0.002,1985.9,1985.8,0.46095764]
[1772880627176,0.002,1985.9,1985.8,0.46195764]
[1772880628671,0.49490007,1985.9,1985.8,0.001]
[1772880628835,0.49490007,1985.9,1985.6,0.001]
[1772880638467,0.49490007,1985.9,1985.7,0.001]
[1772880638954,0.002,1985.8,1985.7,0.001]
[1772880669196,0.46610872,1985.8,1985.7,0.001]
[1772880674397,0.002,1985.8,1985.7,0.001]
[1772880675808,0.46610872,1985.8,1985.6,0.001]
[1772880675978,0.46610872,1985.8,1985.4,0.001]
[1772880676807,0.46410872,1985.6,1985.3,0.001]
[1772880679011,0.46410872,1985.4,1985.3,0.001]
[1772880682979,1.72330082,1985.4,1985.3,0.001]
[1772880694612,0.45950816,1985.2,1985.0,0.001]
[1772880694816,1.71870026,1985.4,1985.0,0.46710747]
[1772880699040,1.71870026,1985.4,1985.1,0.001]
[1772880699242,0.002,1985.3,1985.1,0.001]
[1772880699406,0.46150816,1985.3,1985.1,0.001]
[1772880699730,0.45950816,1985.2,1984.8,0.001]
[1772880702014,0.45950816,1985.0,1984.8,0.001]
[1772880704146,1.25950929,1984.9,1984.8,0.001]
[1772880705417,0.45950816,1984.8,1984.5,0.46720747]
[1772880705950,1.71901745,1984.9,1984.5,0.46720747]
[1772880706722,1.25950929,1984.9,1984.5,0.46720747]
[1772880711521,1.25950929,1984.9,1984.6,0.0011]
[1772880711721,1.25950929,1984.9,1984.6,0.46720747]
[1772880717950,0.45950816,1984.9,1984.6,0.46720747]
[1772880718158,0.45950816,1984.9,1984.6,0.0011]
[1772880719237,0.45950816,1984.9,1984.5,0.0011]
[1772880720330,0.45166274,1984.7,1984.5,0.0011]
[1772880722183,1.25957275,1984.8,1984.5,0.0011]
[1772880722458,1.25955083,1984.9,1984.5,0.47641755]
[1772880722633,1.74304566,1985.1,1984.5,0.47641755]
[1772880723030,1.74304566,1985.1,1984.6,0.0011]
[1772880723230,1.74304566,1985.1,1984.7,0.47531755]
[1772880723431,0.001,1984.8,1984.7,0.47531755]
[1772880728162,0.001,1984.8,1984.6,0.0011]
[1772880728163,0.001,1984.8,1984.6,0.26399369]
[1772880728362,0.48466327,1984.8,1984.6,0.0011]
[1772880730141,1.74425878,1984.8,1984.6,0.0011]
[1772880731370,0.48366327,1984.7,1984.4,0.0011]
[1772880732576,1.25969968,1984.6,1984.4,0.0011]
[1772880732873,1.74336295,1984.6,1984.4,0.0011]
[1772880735163,1.74336295,1984.6,1984.5,0.0011]
[1772880735565,1.74336295,1984.6,1984.3,0.0011]
[1772880737577,0.48366327,1984.5,1984.3,0.0011]
[1772880739477,1.25979219,1984.5,1984.3,0.27025115]
[1772880744284,1.74345546,1984.5,1984.3,0.0011]
[1772880745582,0.48366327,1984.4,1984.3,0.0011]
[1772880745968,1.74345546,1984.5,1984.3,0.0011]
[1772880746895,1.74345546,1984.5,1984.4,0.0011]
[1772880747093,1.74445546,1984.5,1984.4,0.0011]
[1772880748696,1.74445546,1984.5,1984.2,0.27025115]
[1772880748900,1.26079219,1984.5,1984.2,0.27025115]
[1772880751292,0.001,1984.5,1984.2,0.27025115]
[1772880751509,1.7443087,1984.7,1984.3,0.26815115]
[1772880751676,0.48366327,1984.4,1984.1,0.0011]
[1772880752224,0.48366327,1984.4,1984.1,0.26925115]
[1772880753194,0.48366327,1984.4,1984.1,0.0011]
[1772880753494,0.46495782,1984.0,1983.8,0.0011]
[1772880754170,1.25999131,1984.2,1983.8,0.26925115]
[1772880754500,2.84279169,1984.5,1983.9,0.26815115]
[1772880754670,1.25979169,1984.5,1983.9,0.26815115]
[1772880755275,1.72474951,1984.5,1984.0,0.26815115]
[1772880755585,1.72474309,1984.5,1984.0,0.26815115]
[1772880755786,1.72466529,1984.6,1984.0,0.26815115]
[1772880758497,1.72466529,1984.6,1984.0,1.26002839]
[1772880758702,1.72466529,1984.6,1984.1,0.01165321]
[1772880758902,1.25970747,1984.6,1984.1,0.01165321]
[1772880759085,0.49517339,1984.5,1984.1,0.01165321]
[1772880763604,1.75495492,1984.5,1984.1,0.01165321]
[1772880765692,0.49417339,1984.4,1984.1,0.01165321]
[1772880769907,0.49417339,1984.4,1984.0,0.0011]
[1772880770114,0.49417339,1984.3,1984.0,1.27279334]
[1772880770816,0.49517339,1984.3,1984.0,1.27279334]
[1772880771518,0.001,1984.3,1984.0,1.26114013]
[1772880771813,0.001,1984.3,1984.1,0.01165321]
[1772880781436,0.49417339,1984.2,1984.0,0.0011]
[1772880789804,0.49417339,1984.1,1984.0,0.0011]
[1772880790203,0.49417339,1984.1,1983.8,0.0011]
[1772880790422,0.49417339,1984.1,1983.5,0.01165321]
[1772880791438,0.49417339,1984.2,1983.5,0.01165321]
[1772880791814,0.49417339,1984.2,1983.7,0.01165321]
[1772880792914,1.75413059,1984.2,1983.7,0.01165321]
[1772880793739,0.49417339,1984.1,1983.7,1.27188515]
[1772880794141,0.49417339,1984.1,1984.0,0.0011]
[1772880794439,0.49517339,1984.1,1984.0,0.0011]
[1772880798815,0.001,1984.1,1984.0,0.0011]
[1772880799016,0.49517339,1984.1,1984.0,0.0011]
[1772880801621,1.75519052,1984.1,1984.0,0.0011]
[1772880801821,0.49517339,1984.1,1984.0,0.0011]
[1772880807436,0.49417339,1984.0,1983.8,0.0011]
[1772880809931,0.49517339,1984.1,1983.8,0.01275321]
[1772880811055,0.001,1984.1,1983.8,0.01275321]
[1772880811354,1.75506482,1984.3,1983.9,0.01165321]
[1772880816565,1.75506482,1984.3,1983.9,1.27179619]
[1772880818934,1.75506482,1984.3,1984.0,0.0011]
[1772880819133,0.001,1984.2,1984.0,0.01275321]
[1772880821067,0.001,1984.2,1984.0,1.2728282]
[1772880821564,0.49517339,1984.5,1984.1,0.01165321]
[1772880821766,0.86769065,1984.4,1984.1,0.01165321]
[1772880823048,0.86769065,1984.4,1984.0,1.27280884]
[1772880825863,0.37351726,1984.4,1984.0,1.27280884]
[1772880826067,0.49417339,1984.3,1984.0,1.27280884]
[1772880828179,0.37351726,1984.2,1984.0,1.27280884]
[1772880830288,1.26076658,1984.5,1984.1,0.48043066]
[1772880830289,0.001,1984.5,1984.1,0.48043066]
[1772880831066,0.47951262,1984.5,1984.1,0.48043066]
[1772880831275,0.001,1984.2,1984.1,0.48043066]
[1772880832475,0.001,1984.2,1984.1,1.74044779]
[1772880843082,0.001,1984.2,1984.1,1.74154779]
[1772880843586,0.001,1984.2,1984.1,1.26111713]
[1772880844983,0.001,1984.2,1984.1,1.72362332]
[1772880849986,0.001,1984.2,1984.1,3.07662332]
[1772880858461,0.001,1984.2,1984.1,1.72362332]
[1772880858787,0.001,1984.2,1984.1,3.08062332]
[1772880861298,0.001,1984.2,1984.1,2.61811713]
[1772880885614,0.001,1984.2,1984.1,3.08758787]
[1772880888022,0.001,1984.2,1984.1,2.61811713]
[1772880892217,0.47181797,1984.4,1984.1,2.61811713]
[1772880902624,0.47181797,1984.4,1984.1,1.26111713]
[1772880902822,0.47181797,1984.4,1984.1,2.64011713]
[1772880903528,0.47181797,1984.4,1984.2,0.0011]
[1772880903727,0.48378008,1984.3,1984.2,0.0011]
[1772880904130,0.23177781,1984.4,1984.2,0.0011]
[1772880914952,0.001,1984.3,1984.2,0.0011]
[1772880955873,0.001,1984.3,1984.2,0.48076744]
[1772880956076,0.001,1984.5,1984.3,0.47966744]
[1772880958582,0.001,1984.5,1984.3,1.25982669]
[1772880958754,0.001,1984.5,1984.4,0.47966744]
[1772880961380,0.001,1984.5,1984.4,1.73949408]
[1772880961577,0.001,1984.7,1984.5,0.47702386]
[1772880965481,0.001,1984.7,1984.5,1.7367632]
[1772880965683,0.001,1984.7,1984.6,0.47749211]
[1772880966298,0.22950877,1985.1,1984.6,0.47749211]
[1772880968962,0.002,1985.3,1984.8,0.47749211]
[1772880969274,0.23150877,1985.3,1984.8,0.47749211]
[1772880973285,1.48882773,1985.2,1984.8,0.47749211]
[1772880974095,0.22950877,1985.1,1984.8,0.47749211]
[1772880975595,1.48889278,1985.1,1984.8,0.47749211]
[1772880975797,1.48989278,1985.1,1984.8,0.47749211]
[1772880976695,0.23050877,1985.1,1984.8,0.47749211]
[1772880987509,0.23050877,1985.1,1984.9,0.001]
[1772880987807,0.002,1985.0,1984.9,0.001]
[1772880991011,0.002,1985.0,1984.9,0.47849211]
[1772881001007,0.002,1985.0,1984.9,0.001]
[1772881007456,0.001,1985.1,1984.9,0.001]
[1772881007631,0.002,1985.3,1985.0,0.48278291]
[1772881012733,0.002,1985.3,1985.1,0.001]
[1772881013030,0.002,1985.2,1985.1,0.001]
[1772881014248,0.002,1985.2,1985.1,0.48378291]
[1772881027267,0.002,1985.2,1985.1,0.001]
[1772881027555,0.23923519,1985.2,1984.8,0.001]
[1772881028434,0.23623519,1984.8,1984.5,0.0011]
[1772881028752,0.23623519,1984.8,1984.3,0.0011]
[1772881031621,0.23623519,1984.6,1984.3,0.0011]
[1772881036130,1.49597244,1984.6,1984.3,0.0011]
[1772881036328,0.23623519,1984.5,1984.4,0.001]
[1772881043067,0.23623519,1984.3,1984.1,0.0011]
[1772881045335,0.23623519,1984.3,1983.9,0.46112533]
[1772881045537,1.49613352,1984.3,1983.9,0.46112533]
[1772881048679,1.49613352,1984.3,1984.2,0.0011]
[1772881051967,0.001,1984.4,1984.2,0.45213424]
[1772881052267,1.26083453,1984.4,1984.2,0.45213424]
[1772881053475,0.001,1984.4,1984.2,0.45213424]
[1772881059279,0.23176931,1984.4,1984.0,0.0011]
[1772881060086,0.23076931,1984.2,1984.0,0.0011]
[1772881060374,0.23076931,1984.1,1983.7,0.0011]
[1772881061162,0.23076931,1984.1,1984.0,0.0011]
[1772881061366,0.23076931,1984.1,1983.7,0.45213424]
[1772881061564,0.23076931,1984.1,1983.8,0.0011]
[1772881064184,1.26008064,1984.0,1983.8,0.0011]
[1772881064386,1.49084995,1984.0,1983.8,0.0011]
[1772881065991,1.48974995,1984.0,1982.9,0.45103424]
[1772881066285,1.48974995,1984.0,1983.1,0.45103424]
[1772881066865,1.48962294,1984.2,1983.1,0.45103424]
[1772881067086,0.22966931,1984.1,1983.1,0.45103424]
[1772881069796,0.22966931,1984.0,1983.3,0.45103424]
[1772881072203,0.22966931,1984.0,1983.4,1.26046183]
[1772881072405,0.22966931,1984.0,1983.5,0.45103424]
[1772881073812,1.48979239,1984.0,1983.5,0.45103424]
[1772881074106,0.22966931,1983.9,1983.5,0.45103424]
[1772881074276,0.22966931,1983.9,1983.5,1.71141866]
[1772881074475,0.22966931,1983.9,1983.5,1.71141325]
[1772881074889,0.22966931,1983.8,1983.5,0.45103424]
[1772881076623,1.4898789,1983.8,1983.3,0.45103424]
[1772881077326,1.48988534,1983.8,1983.3,0.45103424]
[1772881077536,0.22966931,1983.7,1983.3,0.45103424]
[1772881078829,1.48997725,1983.7,1983.3,0.45103424]
[1772881080430,1.26020768,1983.8,1983.4,0.47092452]
[1772881081229,1.49080788,1984.0,1983.5,0.47092452]
[1772881083098,1.49080788,1984.0,1983.6,0.47408374]
[1772881084335,0.22966931,1983.9,1983.6,0.47408374]
[1772881087535,1.48985654,1983.9,1983.3,0.47408374]
[1772881087709,0.22966931,1983.8,1983.3,0.47408374]
[1772881088524,0.22966931,1983.8,1983.2,0.47518374]
[1772881089838,0.22966931,1983.8,1983.3,1.26052538]
[1772881090020,0.22966931,1983.8,1983.4,0.47408374]
[1772881090343,1.48987864,1983.8,1983.4,0.47408374]
[1772881090921,1.48988447,1983.8,1983.4,0.47408374]
[1772881091238,0.22966931,1983.8,1983.4,0.47408374]
[1772881091428,1.48988459,1983.8,1983.4,0.47408374]
[1772881091830,0.22966931,1983.8,1983.4,0.47408374]
[1772881092138,1.48988075,1983.8,1983.4,1.73454075]
[1772881093044,0.22966931,1983.8,1983.4,1.73454075]
[1772881094008,0.22966931,1983.8,1983.5,0.47408374]
[1772881094733,0.23066931,1984.0,1983.5,1.73447924]
[1772881094914,0.23066931,1984.0,1983.6,0.47408374]
[1772881094915,0.001,1984.0,1983.6,0.47408374]
[1772881099040,0.001,1984.0,1983.7,0.47408374]
[1772881099244,0.001,1983.9,1983.7,0.47408374]
[1772881099832,0.001,1984.3,1983.7,0.47408374]
[1772881100016,1.26089743,1984.3,1983.7,0.47408374]
[1772881100340,0.001,1984.3,1983.7,0.47408374]
[1772881101853,0.001,1984.3,1983.9,0.47408374]
[1772881104046,0.001,1984.3,1984.1,0.47408374]
[1772881105942,0.001,1984.3,1984.2,1.73403737]
[1772881110162,0.001,1984.3,1983.9,0.47408374]
[1772881112665,0.001,1984.3,1984.1,0.48286292]
[1772881112958,0.001,1984.2,1984.1,0.48286292]
[1772881116860,0.001,1984.2,1984.1,1.74288005]
[1772881121967,0.001,1984.2,1984.0,0.48286292]
[1772881124764,0.001,1984.2,1984.1,1.26001713]
[1772881126963,0.23166931,1984.2,1984.0,0.0011]
[1772881127169,0.001,1984.3,1984.0,0.50109999]
[1772881129367,0.001,1984.3,1984.2,0.49999999]
[1772881133669,0.001,1984.3,1984.2,1.75995362]
[1772881141678,0.001,1984.3,1984.2,0.49999999]
[1772881141884,0.001,1984.3,1984.1,1.76110535]
[1772881149198,0.001,1984.3,1984.2,0.0011]
[1772881152402,0.001,1984.3,1984.2,0.50109999]
[1772881156999,0.001,1984.3,1984.2,1.26105363]